bitfinex-derivatives/quotes_BTCF0:USTF0_20241025
["timestamp","ask_amount","ask_price","bid_price","bid_amount"]
[1729816445033,0.52154961,68055.0,68054.0,0.073504]
[1729816445224,0.52154961,68055.0,68054.0,0.14970992]
[1729816445431,0.3608,68055.0,68054.0,0.22591584]
[1729816445828,0.3608,68059.0,68058.0,0.073499]
[1729816446126,0.14611044,68062.0,68061.0,0.073496]
[1729816446319,0.3608,68063.0,68061.0,0.07620592]
[1729816446520,0.3608,68063.0,68062.0,0.073495]
[1729816446722,0.3608,68063.0,68062.0,0.206575]
[1729816449332,0.3608,68071.0,68062.0,0.20928592]
[1729816449633,0.3608,68071.0,68070.0,0.22589784]
[1729816449819,0.3608,68071.0,68070.0,0.35197784]
[1729816450021,0.44731462,68071.0,68070.0,0.35197784]
[1729816451226,0.3608,68071.0,68070.0,0.35197784]
[1729816451428,0.0322,68076.0,68075.0,0.073481]
[1729816451628,0.0322,68076.0,68075.0,0.22589284]
[1729816451826,0.11871462,68076.0,68075.0,0.22589284]
[1729816452026,0.08651462,68076.0,68075.0,0.22589284]
[1729816452321,0.3608,68079.0,68078.0,0.073478]
[1729816453229,0.44731462,68079.0,68078.0,0.073478]
[1729816453536,0.44731462,68079.0,68075.0,0.15241184]
[1729816453833,0.44731462,68079.0,68078.0,0.073478]
[1729816455933,0.44731462,68079.0,68063.0,0.00076]
[1729816456233,0.07620592,68080.0,68062.0,0.073494]
[1729816456234,0.07620592,68063.0,68062.0,0.073494]
[1729816456629,0.073499,68059.0,68049.0,0.073509]
[1729816456830,0.3608,68054.0,68053.0,0.12608]
[1729816457035,0.08575462,68049.0,68047.0,0.41264]
[1729816457335,0.08575462,68049.0,68047.0,0.074351]
[1729816457336,0.16196054,68049.0,68047.0,0.074351]
[1729816457541,0.16196054,68049.0,68047.0,0.073511]
[1729816457833,0.07620592,68048.0,68043.0,0.12608]
[1729816458028,0.59626954,68049.0,68043.0,0.12608]
[1729816458029,0.07620592,68044.0,68043.0,0.12608]
[1729816458229,0.16196054,68044.0,68043.0,0.12608]
[1729816458431,0.16196054,68044.0,68043.0,0.199596]
[1729816459932,0.16196054,68044.0,68043.0,0.073516]
[1729816460129,0.07620592,68043.0,68039.0,0.07352]
[1729816460330,0.3949,68046.0,68039.0,0.07352]
[1729816460331,0.43700592,68040.0,68039.0,0.07352]
[1729816460531,0.52276054,68040.0,68039.0,0.07352]
[1729816460830,0.073521,68038.0,68034.0,0.073525]
[1729816461029,0.08575462,68035.0,68034.0,0.073525]
[1729816461330,0.20198733,68035.0,68034.0,0.073525]
[1729816461836,0.07620592,68034.0,68030.0,0.073529]
[1729816462028,0.104422,68037.0,68030.0,0.073529]
[1729816462029,0.3608,68031.0,68030.0,0.073529]
[1729816462339,0.56278733,68031.0,68030.0,0.073529]
[1729816462531,0.59458733,68031.0,68030.0,0.073529]
[1729816462731,0.67079325,68031.0,68030.0,0.073529]
[1729816465943,0.20198733,68031.0,68030.0,0.073529]
[1729816466241,0.20198733,68031.0,68030.0,0.14973492]
[1729816466431,0.13953999,68031.0,68030.0,0.14973492]
[1729816466630,0.05378537,68031.0,68030.0,0.14973492]
[1729816466839,0.05416728,68038.0,68030.0,0.14973492]
[1729816467042,0.08575462,68036.0,68035.0,0.15241184]
[1729816467243,0.20281268,68036.0,68035.0,0.15241184]
[1729816467438,0.1399219,68036.0,68035.0,0.15241184]
[1729816467640,0.2028761,68036.0,68035.0,0.15241184]
[1729816467843,0.1399219,68036.0,68035.0,0.22593584]
[1729816468344,0.08575462,68036.0,68035.0,0.22593584]
[1729816468532,0.16196054,68036.0,68035.0,0.073524]
[1729816470843,0.08575462,68036.0,68035.0,0.073524]
[1729816472745,0.08575462,68036.0,68035.0,0.199644]
[1729816474641,0.08575462,68036.0,68035.0,0.073524]
[1729816474845,0.16196054,68036.0,68035.0,0.073524]
[1729816475047,0.16196054,68036.0,68029.0,0.00220455]
[1729816475349,0.52276054,68030.0,68029.0,0.00220455]
[1729816476642,0.52276054,68030.0,68029.0,0.07573555]
[1729816477354,0.59896646,68030.0,68029.0,0.07573555]
[1729816477652,0.08575462,68030.0,68029.0,0.07573555]
[1729816479953,0.3608,68032.0,68029.0,0.00220455]
[1729816480153,0.3608,68032.0,68031.0,0.22593984]
[1729816480555,0.3608,68032.0,68031.0,0.25663984]
[1729816483357,0.3608,68038.0,68037.0,0.073522]
[1729816483563,0.3608,68038.0,68037.0,0.22593384]
[1729816483858,0.44655462,68038.0,68037.0,0.22593384]
[1729816484656,0.44655462,68038.0,68037.0,0.26995766]
[1729816485451,0.44655462,68038.0,68037.0,0.22593384]
[1729816486755,0.44655462,68038.0,68037.0,0.34517384]
[1729816488957,0.3608,68038.0,68037.0,0.34517384]
[1729816491969,0.3608,68038.0,68037.0,0.40391256]
[1729816492971,0.3608,68038.0,68037.0,0.33039056]
[1729816493174,0.3608,68038.0,68037.0,0.40391256]
[1729816493463,0.3608,68038.0,68037.0,0.34517384]
[1729816495967,0.3924,68047.0,68037.0,0.86229976]
[1729816496177,0.3608,68047.0,68046.0,0.22592384]
[1729816496471,0.3608,68047.0,68046.0,0.28467385]
[1729816496675,0.44655462,68047.0,68046.0,0.13226201]
[1729816497368,0.08575462,68047.0,68046.0,0.073512]
[1729816497562,0.3608,68055.0,68054.0,0.073504]
[1729816497762,0.3608,68055.0,68054.0,0.22591584]
[1729816498066,0.44655462,68055.0,68054.0,0.26995799]
[1729816498360,0.44655462,68055.0,68054.0,0.22591584]
[1729816499767,0.44655462,68055.0,68054.0,0.28463871]
[1729816500165,0.3608,68055.0,68054.0,0.28463871]
[1729816500366,0.3608,68055.0,68054.0,0.22591584]
[1729816500971,0.44655462,68055.0,68054.0,0.192744]
[1729816501179,0.52276054,68055.0,68054.0,0.192744]
[1729816501469,0.52276054,68055.0,68054.0,0.11924]
[1729816501869,0.52276054,68055.0,68053.0,0.073504]
[1729816502068,0.3608,68055.0,68053.0,0.073504]
[1729816502275,0.08575462,68054.0,68053.0,0.073504]
[1729816503370,0.08575462,68054.0,68051.0,0.19641304]
[1729816503577,0.3608,68055.0,68051.0,0.0440012]
[1729816503578,0.08575462,68052.0,68051.0,0.0440012]
[1729816503874,0.08575462,68052.0,68051.0,0.2367482]
[1729816504675,0.08575462,68052.0,68051.0,0.1175082]
[1729816504975,0.08575462,68052.0,68051.0,0.2367482]
[1729816505873,0.08575462,68052.0,68051.0,0.1175082]
[1729816506071,0.08575462,68052.0,68051.0,0.2301882]
[1729816506672,0.08575462,68052.0,68051.0,0.0440012]
[1729816508375,0.08575462,68052.0,68050.0,0.11268]
[1729816508575,0.08575462,68051.0,68050.0,0.26239392]
[1729816508772,0.08575462,68051.0,68050.0,0.33859984]
[1729816510877,0.3608,68055.0,68054.0,0.073504]
[1729816511080,0.3608,68055.0,68054.0,0.22591584]
[1729816511578,0.3923,68061.0,68060.0,0.073497]
[1729816511765,0.3923,68061.0,68060.0,0.22590884]
[1729816511968,0.073501,68057.0,68048.0,0.02692538]
[1729816512173,0.3608,68049.0,68048.0,0.18619]
[1729816512366,0.3608,68049.0,68043.0,0.15241184]
[1729816512367,0.43700592,68049.0,68044.0,0.073514]
[1729816512571,0.43700592,68049.0,68039.0,0.00220414]
[1729816512572,0.15241184,68045.0,68040.0,0.073518]
[1729816512778,0.3608,68043.0,68041.0,0.073517]
[1729816512973,0.18271184,68042.0,68041.0,0.073517]
[1729816513173,0.10650592,68042.0,68041.0,0.073517]
[1729816513469,0.30049361,68042.0,68039.0,0.00220414]
[1729816513670,0.11778177,68041.0,68039.0,0.00220414]
[1729816513872,0.11778177,68041.0,68040.0,0.073519]
[1729816514175,0.11778177,68041.0,68040.0,0.186199]
[1729816515074,0.11778177,68041.0,68040.0,0.073519]
[1729816515382,0.11694736,68041.0,68040.0,0.186199]
[1729816517081,0.05411607,68041.0,68040.0,0.186199]
[1729816517480,0.08441607,68042.0,68040.0,0.186199]
[1729816517781,0.05411607,68041.0,68040.0,0.186199]
[1729816517975,0.05411607,68042.0,68040.0,0.18888592]
[1729816518288,0.05411607,68041.0,68040.0,0.26240492]
[1729816518582,0.05411607,68041.0,68040.0,0.33861084]
[1729816518892,0.05411607,68042.0,68041.0,0.073518]
[1729816519182,0.05444775,68042.0,68041.0,0.073518]
[1729816519976,0.05444775,68042.0,68040.0,0.26509184]
[1729816519977,0.05444123,68042.0,68040.0,0.26509184]
[1729816520177,0.05444123,68041.0,68040.0,0.33861084]
[1729816521178,0.05444123,68041.0,68040.0,0.22593084]
[1729816521388,0.3608,68043.0,68042.0,0.073517]
[1729816521686,0.3608,68043.0,68042.0,0.13223313]
[1729816522088,0.3608,68043.0,68042.0,0.073517]
[1729816522787,0.3608,68043.0,68042.0,0.186197]
[1729816524098,0.3608,68043.0,68039.0,0.06092027]
[1729816524304,0.14972492,68040.0,68039.0,0.00220414]
[1729816525592,0.14972492,68040.0,68039.0,0.04624975]
[1729816527497,0.59064492,68040.0,68039.0,0.00220414]
[1729816528606,0.07620592,68040.0,68039.0,0.00220414]
[1729816528793,0.07620592,68040.0,68039.0,0.07572414]
[1729816528993,0.07620592,68040.0,68039.0,0.07352]
[1729816529500,0.073518,68041.0,68039.0,0.07352]
[1729816529802,0.07620592,68040.0,68039.0,0.07352]
[1729816531508,0.14972492,68040.0,68039.0,0.07352]
[1729816532199,0.59064492,68040.0,68039.0,0.07352]
[1729816532508,0.073522,68037.0,68035.0,0.04404561]
[1729816532806,0.51321184,68036.0,68035.0,0.11756961]
[1729816533197,0.51321184,68036.0,68035.0,0.04404561]
[1729816533389,0.073526,68033.0,68032.0,0.073527]
[1729816533595,0.14973192,68033.0,68032.0,0.073527]
[1729816536904,0.07620592,68032.0,68027.0,0.15176561]
[1729816537101,0.3608,68030.0,68027.0,0.15176561]
[1729816537504,0.07620592,68028.0,68027.0,0.04404561]
[1729816537704,0.15241184,68028.0,68027.0,0.04404561]
[1729816538706,0.15241184,68028.0,68025.0,0.04404561]
[1729816539110,0.15241184,68028.0,68026.0,0.04404561]
[1729816539309,0.22594384,68028.0,68026.0,0.04404561]
[1729816539612,0.22594384,68028.0,68023.0,0.04404561]
[1729816539613,0.073535,68025.0,68023.0,0.04404561]
[1729816539907,0.51054192,68024.0,68023.0,0.04404561]
[1729816540502,0.07620592,68023.0,68022.0,0.04404561]
[1729816540708,0.07620592,68023.0,68019.0,0.10772]
[1729816541007,0.07620592,68023.0,68018.0,0.05871613]
[1729816541307,0.07620592,68023.0,68019.0,0.10772]
[1729816541608,0.07620592,68023.0,68019.0,0.16643613]
[1729816541909,0.14974292,68023.0,68021.0,0.04400747]
[1729816542104,0.14974292,68023.0,68019.0,0.10772]
[1729816542105,0.14974292,68023.0,68020.0,0.04400747]
[1729816542307,0.14974292,68023.0,68019.0,0.15172747]
[1729816542508,0.073539,68022.0,68019.0,0.15172747]
[1729816542908,0.073539,68022.0,68020.0,0.04400747]
[1729816543416,0.07354,68020.0,68019.0,0.04400747]
[1729816543608,0.07354,68020.0,68018.0,0.10772]
[1729816543911,0.07354,68020.0,68017.0,0.10772]
[1729816544107,0.3608,68018.0,68017.0,0.10772]
[1729816545413,0.3608,68018.0,68017.0,0.26013184]
[1729816545618,0.3608,68018.0,68017.0,0.15241184]
[1729816545915,0.3608,68018.0,68017.0,0.181304]
[1729816546116,0.3608,68018.0,68017.0,0.22531147]
[1729816546314,0.3608,68018.0,68017.0,0.33371584]
[1729816546905,0.3608,68018.0,68017.0,0.37772331]
[1729816547106,0.3608,68018.0,68017.0,0.33371584]
[1729816547314,0.3608,68018.0,68017.0,0.37769272]
[1729816547507,0.3608,68018.0,68017.0,0.33371584]
[1729816549113,0.3608,68018.0,68017.0,0.22595584]
[1729816549315,0.3608,68018.0,68017.0,0.37770093]
[1729816549626,0.3608,68018.0,68017.0,0.15174509]
[1729816550519,0.3608,68018.0,68017.0,0.15175832]
[1729816550822,0.3608,68018.0,68017.0,0.10776]
[1729816551323,0.3608,68018.0,68016.0,0.15241184]
[1729816551516,0.3608,68018.0,68017.0,0.10776]
[1729816551816,0.3608,68018.0,68017.0,0.181304]
[1729816554515,0.3608,68018.0,68017.0,0.24002013]
[1729816555923,0.3608,68018.0,68017.0,0.181304]
[1729816556518,0.3608,68018.0,68017.0,0.24002013]
[1729816558422,0.3608,68018.0,68017.0,0.181304]
[1729816561925,0.14611044,68077.0,68017.0,0.181304]
[1729816561926,0.3608,68024.0,68023.0,0.073537]
[1729816562131,0.3608,68024.0,68023.0,0.22594884]
[1729816563627,0.07620592,68029.0,68027.0,0.073533]
[1729816563826,0.07620592,68034.0,68028.0,0.05877028]
[1729816564032,0.07620592,68033.0,68029.0,0.07353]
[1729816564533,0.07620592,68033.0,68030.0,0.07353]
[1729816568728,0.07620592,68033.0,68030.0,0.17697]
[1729816571830,0.36228,68035.0,68030.0,0.17697]
[1729816571831,0.3608,68035.0,68030.0,0.25317592]
[1729816572341,0.3608,68035.0,68030.0,0.26045796]
[1729816573442,0.3608,68035.0,68034.0,0.073525]
[1729816573633,0.3608,68035.0,68034.0,0.28470712]
[1729816573940,0.36250672,68035.0,68034.0,0.22593684]
[1729816574639,0.36282053,68035.0,68034.0,0.22593684]
[1729816577535,0.00202053,68035.0,68034.0,0.22593684]
[1729816579035,0.00202053,68035.0,68034.0,0.66689684]
[1729816579241,0.3608,68045.0,68044.0,0.073514]
[1729816579436,0.3608,68045.0,68044.0,0.48173768]
[1729816579640,0.3608,68045.0,68044.0,0.32932584]
[1729816580734,0.14910592,68057.0,68049.0,0.073509]
[1729816580945,0.0729,68057.0,68055.0,0.073502]
[1729816581140,0.0729,68057.0,68056.0,0.17960592]
[1729816581444,0.1464,68057.0,68056.0,0.1034]
[1729816582752,0.1464,68057.0,68056.0,0.05190426]
[1729816583140,0.0729,68057.0,68056.0,0.05190426]
[1729816583342,0.0729,68057.0,68056.0,0.2043161]
[1729816583649,0.0729,68057.0,68056.0,0.2778171]
[1729816583845,0.36228,68058.0,68057.0,0.0735]
[1729816584049,0.3608,68058.0,68057.0,0.0735]
[1729816586352,0.3608,68064.0,68063.0,0.073494]
[1729816586650,0.3608,68064.0,68063.0,0.22590584]
[1729816589053,0.3608,68064.0,68063.0,0.23344364]
[1729816595457,0.073481,68075.0,68063.0,0.15994964]
[1729816595645,0.3608,68064.0,68063.0,0.0810318]
[1729816595848,0.3608,68064.0,68063.0,0.23344364]
[1729816598463,0.073481,68075.0,68063.0,0.15994964]
[1729816598668,0.3608,68064.0,68063.0,0.0810318]
[1729816598868,0.3608,68064.0,68063.0,0.23344364]
[1729816600373,0.3608,68064.0,68063.0,0.18112102]
[1729816600973,0.05004461,68073.0,68066.0,0.07349]
[1729816601176,0.7216,68072.0,68070.0,0.10008922]
[1729816603474,0.7216,68072.0,68070.0,0.17357522]
[1729816604573,0.7216,68072.0,68070.0,0.10008922]
[1729816604774,0.7216,68072.0,68071.0,0.073485]
[1729816607179,0.05004461,68073.0,68071.0,0.073485]
[1729816607473,0.7216,68072.0,68071.0,0.073485]
[1729816609684,0.83939095,68072.0,68071.0,0.073485]
[1729816611573,0.72342224,68072.0,68071.0,0.073485]
[1729816612878,0.72386199,68072.0,68071.0,0.073485]
[1729816614675,0.72386199,68072.0,68071.0,0.11750849]
[1729816615680,0.72386199,68072.0,68071.0,0.073485]
[1729816617779,0.72386199,68072.0,68071.0,0.173565]
[1729816618485,0.91416335,68072.0,68071.0,0.10008]
[1729816619978,0.91416335,68072.0,68071.0,0.173565]
[1729816620180,0.99888732,68072.0,68071.0,0.173565]
[1729816620879,0.63808732,68072.0,68071.0,0.173565]
[1729816622878,0.63833989,68072.0,68071.0,0.173565]
[1729816623478,0.63833989,68072.0,68071.0,0.05589057]
[1729816624787,0.7993179,68072.0,68071.0,0.05589057]
[1729816625288,0.52429257,68072.0,68071.0,0.05589057]
[1729816625486,0.70947441,68072.0,68071.0,0.05589057]
[1729816627283,0.70947441,68072.0,68071.0,0.15597979]
[1729816627887,0.52429257,68072.0,68071.0,0.15597979]
[1729816630180,0.52429257,68072.0,68071.0,0.10593518]
[1729816630380,0.52429257,68072.0,68071.0,0.15597979]
[1729816631084,0.52429257,68072.0,68071.0,0.25606901]
[1729816631480,0.52429257,68072.0,68071.0,0.36526901]
[1729816631987,0.16349257,68072.0,68071.0,0.36526901]
[1729816632181,0.3608,68084.0,68083.0,0.073472]
[1729816632380,0.3608,68090.0,68089.0,0.073466]
[1729816632581,0.3608,68090.0,68089.0,0.17355522]
[1729816634088,0.3608,68090.0,68089.0,0.18093055]
[1729816634389,0.3608,68090.0,68089.0,0.22492217]
[1729816634779,0.3608,68090.0,68089.0,0.18093055]
[1729816635081,0.54406012,68090.0,68089.0,0.13676338]
[1729816635277,0.62632992,68090.0,68089.0,0.09096192]
[1729816635489,0.26552992,68090.0,68089.0,0.24109575]
[1729816635787,0.18326012,68090.0,68089.0,0.14100653]
[1729816636202,0.18326012,68090.0,68089.0,0.19105114]
[1729816636382,0.3608,68096.0,68089.0,0.19105114]
[1729816636383,0.3530698,68096.0,68089.0,0.19847226]
[1729816636579,0.3530698,68096.0,68095.0,0.27363744]
[1729816636785,0.3608,68105.0,68104.0,0.07345]
[1729816636995,0.3608,68105.0,68104.0,0.27362844]
[1729816637488,0.14577277,68110.0,68109.0,0.073444]
[1729816637688,0.3608,68113.0,68112.0,0.073441]
[1729816637883,0.3608,68113.0,68112.0,0.27361944]
[1729816638191,0.3608,68113.0,68112.0,0.71405944]
[1729816638392,0.14561864,68118.0,68117.0,0.073436]
[1729816638583,0.3608,68119.0,68118.0,0.073435]
[1729816638779,0.14562613,68119.0,68117.0,0.10008922]
[1729816638983,0.14561734,68118.0,68117.0,0.10008922]
[1729816639179,0.14561734,68118.0,68117.0,0.17352522]
[1729816639395,0.14561734,68120.0,68119.0,0.073433]
[1729816639582,0.3608,68124.0,68119.0,0.073433]
[1729816639583,0.3608,68124.0,68122.0,0.07343]
[1729816639786,0.0772807,68123.0,68122.0,0.07343]
[1729816640086,0.0772807,68123.0,68122.0,0.17351922]
[1729816640389,0.23713158,68123.0,68122.0,0.22580936]
[1729816640790,0.52065088,68124.0,68123.0,0.073429]
[1729816640985,0.59806775,68124.0,68123.0,0.073429]
[1729816641286,0.3608,68124.0,68123.0,0.073429]
[1729816641491,0.42625737,68124.0,68123.0,0.073429]
[1729816641991,0.42625737,68124.0,68115.0,0.0387]
[1729816641992,0.50244705,68124.0,68118.0,0.073435]
[1729816642190,0.50244705,68124.0,68106.0,0.36156]
[1729816642191,0.14962468,68118.0,68106.0,0.36156]
[1729816642392,0.15237936,68109.0,68107.0,0.09792]
[1729816642694,0.07618968,68109.0,68108.0,0.171365]
[1729816643087,0.07618968,68112.0,68108.0,0.171365]
[1729816643489,0.07618968,68112.0,68111.0,0.073442]
[1729816643689,0.07618968,68113.0,68111.0,0.073442]
[1729816643891,0.07618968,68113.0,68112.0,0.09792]
[1729816644203,0.3608,68114.0,68112.0,0.09792]
[1729816648492,0.3608,68114.0,68112.0,0.04647155]
[1729816649390,0.3608,68114.0,68113.0,0.07344]
[1729816650299,0.07618968,68116.0,68113.0,0.07344]
[1729816650602,0.3608,68114.0,68113.0,0.07344]
[1729816652504,0.07618968,68116.0,68113.0,0.07344]
[1729816652802,0.3608,68114.0,68113.0,0.07344]
[1729816652995,0.3608,68114.0,68113.0,0.17132]
[1729816653996,0.3608,68114.0,68109.0,0.07618968]
[1729816653997,0.07618968,68113.0,68109.0,0.07618968]
[1729816654199,0.07618968,68109.0,68095.0,0.43774968]
[1729816654399,0.07618968,68104.0,68103.0,0.073451]
[1729816654603,0.07618968,68104.0,68103.0,0.171331]
[1729816654901,0.36228,68107.0,68105.0,0.073448]
[1729816655104,0.3608,68107.0,68105.0,0.073448]
[1729816655694,0.3608,68107.0,68106.0,0.073448]
[1729816656003,0.3608,68107.0,68106.0,0.171328]
[1729816656501,0.3608,68107.0,68106.0,0.32370736]
[1729816656894,0.3608,68107.0,68106.0,0.171328]
[1729816657998,0.60568772,68107.0,68106.0,0.09788]
[1729816658202,0.60568772,68107.0,68102.0,0.073452]
[1729816658393,0.3608,68107.0,68106.0,0.09788]
[1729816658598,0.60583057,68107.0,68106.0,0.09788]
[1729816658893,0.60583057,68107.0,68106.0,0.171328]
[1729816659996,0.60583057,68107.0,68106.0,0.24751768]
[1729816660199,0.24503057,68107.0,68106.0,0.24751768]
[1729816660601,0.16911214,68107.0,68106.0,0.24751768]
[1729816662100,0.16911214,68107.0,68106.0,0.171328]
[1729816662497,0.16008891,68107.0,68106.0,0.171328]
[1729816664997,0.3608,68120.0,68115.0,0.07343]
[1729816665199,0.3608,68120.0,68116.0,0.17406968]
[1729816665404,0.3608,68120.0,68116.0,0.09788]
[1729816667715,0.3608,68120.0,68116.0,0.171309]
[1729816671316,0.15651055,68117.0,68116.0,0.171309]
[1729816671899,0.1105,68117.0,68116.0,0.171309]
[1729816672104,0.15651691,68117.0,68116.0,0.171309]
[1729816673000,0.34241561,68117.0,68116.0,0.09788]
[1729816673310,0.34241561,68117.0,68112.0,0.07618968]
[1729816673506,0.07618968,68112.0,68111.0,0.09788]
[1729816673715,0.31484295,68112.0,68111.0,0.14962468]
[1729816674014,0.31484295,68112.0,68111.0,0.01231072]
[1729816674208,0.31484295,68112.0,68111.0,0.25025936]
[1729816674606,0.31484295,68112.0,68111.0,0.14962468]
[1729816674820,0.31484295,68112.0,68110.0,0.09788]
[1729816675114,0.39103263,68111.0,68110.0,0.09788]
[1729816678514,0.31484295,68111.0,68110.0,0.09788]
[1729816679812,0.67564295,68111.0,68107.0,0.073439]
[1729816680013,0.11945391,68110.0,68108.0,0.09788]
[1729816680215,0.04601691,68109.0,68108.0,0.09788]
[1729816680718,0.04015825,68109.0,68108.0,0.09788]
[1729816682521,0.04015825,68109.0,68106.0,0.07344]
[1729816682821,0.04015825,68108.0,68107.0,0.09788]
[1729816684219,0.40095825,68108.0,68107.0,0.09788]
[1729816684425,0.3608,68108.0,68107.0,0.09788]
[1729816684821,0.40097711,68108.0,68107.0,0.09788]
[1729816687019,0.56313198,68108.0,68107.0,0.0982]
[1729816688121,0.20233198,68108.0,68107.0,0.0982]
[1729816688525,0.56313198,68108.0,68107.0,0.0982]
[1729816688720,0.57038605,68108.0,68107.0,0.0982]
[1729816688915,0.56313198,68108.0,68107.0,0.171639]
[1729816689117,0.56313198,68108.0,68107.0,0.24782868]
[1729816689322,0.56313198,68108.0,68107.0,0.32401836]
[1729816690823,0.56364268,68108.0,68107.0,0.171639]
[1729816691024,0.55483964,68108.0,68107.0,0.171639]
[1729816691232,0.55483962,68108.0,68107.0,0.171639]
[1729816692736,0.19403962,68108.0,68107.0,0.00859944]
[1729816692927,0.19403962,68108.0,68107.0,0.0982]
[1729816693236,0.19403962,68108.0,68107.0,0.073439]
[1729816693427,0.19403962,68108.0,68107.0,0.0982]
[1729816693830,0.073444,68103.0,68101.0,0.00722412]
[1729816694035,0.13138383,68102.0,68097.0,0.07345]
[1729816694237,0.07618968,68100.0,68099.0,0.0982]
[1729816694433,0.2702293,68100.0,68099.0,0.0982]
[1729816694934,0.2702293,68100.0,68099.0,0.171648]
[1729816695237,0.07618968,68100.0,68098.0,0.00220225]
[1729816696737,0.07618968,68103.0,68098.0,0.07565125]
[1729816697333,0.07618968,68103.0,68098.0,0.17385125]
[1729816698138,0.07618968,68103.0,68098.0,0.10040225]
[1729816698334,0.10895579,68102.0,68098.0,0.10040225]
[1729816698636,0.03550979,68101.0,68098.0,0.10040225]
[1729816698830,0.073446,68102.0,68098.0,0.10040225]
[1729816699029,0.03548764,68101.0,68098.0,0.10040225]
[1729816699234,0.073446,68102.0,68098.0,0.10040225]
[1729816699438,0.03560989,68101.0,68098.0,0.10040225]
[1729816699642,0.073446,68102.0,68098.0,0.10040225]
[1729816699841,0.073446,68102.0,68098.0,0.07565125]
[1729816700644,0.073446,68102.0,68098.0,0.22803061]
[1729816702143,0.43846968,68103.0,68098.0,0.07565125]
[1729816702144,0.073446,68101.0,68098.0,0.07565125]
[1729816702339,0.20044283,68100.0,68096.0,0.09824]
[1729816702538,0.18003332,68099.0,68095.0,0.07618968]
[1729816702739,0.07618968,68100.0,68095.0,0.07618968]
[1729816702740,0.18003332,68098.0,68096.0,0.073451]
[1729816702939,0.18003332,68097.0,68096.0,0.073451]
[1729816703135,0.12425315,68097.0,68096.0,0.0386031]
[1729816704852,0.11979186,68097.0,68096.0,0.0386031]
[1729816707660,0.11979186,68097.0,68096.0,0.1368431]
[1729816710360,0.0391,68098.0,68096.0,0.1368431]
[1729816710558,0.0396,68097.0,68096.0,0.1368431]
[1729816710861,0.0396,68097.0,68096.0,0.0386031]
[1729816711763,0.0396,68097.0,68095.0,0.09824]
[1729816712156,0.0375,68096.0,68095.0,0.09824]
[1729816712864,0.0375,68096.0,68093.0,0.09824]
[1729816714852,0.073453,68095.0,68092.0,0.1054398]
[1729816715057,0.14964268,68095.0,68092.0,0.09824]
[1729816715460,0.14964268,68095.0,68091.0,0.09824]
[1729816716360,0.3608,68092.0,68091.0,0.09824]
[1729816716560,0.3608,68092.0,68080.0,0.073468]
[1729816716561,0.073462,68087.0,68080.0,0.073468]
[1729816716760,0.07618968,68091.0,68081.0,0.07839248]
[1729816716761,0.4003,68086.0,68081.0,0.07839248]
[1729816717171,0.4003,68086.0,68084.0,0.073464]
[1729816717666,0.4003,68086.0,68081.0,0.08582708]
[1729816717870,0.4003,68086.0,68085.0,0.07618968]
[1729816721064,0.4003,68086.0,68085.0,0.14965268]
[1729816721263,0.4003,68086.0,68084.0,0.07618968]
[1729816721461,0.07618968,68085.0,68081.0,0.0022028]
[1729816721664,0.14965568,68082.0,68081.0,0.0022028]
[1729816722370,0.12350425,68082.0,68081.0,0.0022028]
[1729816723267,0.073469,68079.0,68076.0,0.09788]
[1729816723466,0.05003825,68077.0,68076.0,0.09788]
[1729816723668,0.05003825,68077.0,68075.0,0.00076]
[1729816723669,0.1000765,68076.0,68075.0,0.00076]
[1729816723965,0.073475,68075.0,68070.0,0.073479]
[1729816724167,0.41231825,68077.0,68070.0,0.073479]
[1729816724168,0.05003825,68073.0,68070.0,0.073479]
[1729816724472,0.110375,68074.0,68070.0,0.073479]
[1729816724972,0.110375,68074.0,68071.0,0.073478]
[1729816725969,0.073478,68071.0,68069.0,0.07348]
[1729816726274,0.14973283,68070.0,68068.0,0.07424]
[1729816726570,0.14973283,68070.0,68065.0,0.15250566]
[1729816726571,0.14973283,68070.0,68069.0,0.07348]
[1729816726770,0.07348,68070.0,68069.0,0.07348]
[1729816727268,0.3608,68071.0,68065.0,0.22598966]
[1729816727474,0.073483,68066.0,68064.0,0.09792]
[1729816727663,0.18517657,68065.0,68064.0,0.09792]
[1729816728177,0.10873951,68065.0,68064.0,0.171405]
[1729816728369,0.03248668,68065.0,68064.0,0.171405]
[1729816730673,0.03248668,68065.0,68059.0,0.3608]
[1729816730674,0.073487,68063.0,68061.0,0.09792]
[1729816730875,0.07625283,68064.0,68061.0,0.09792]
[1729816731067,0.07625283,68064.0,68060.0,0.07349]
[1729816731374,0.07625283,68061.0,68060.0,0.09792]
[1729816731776,0.14974283,68060.0,68055.0,0.073495]
[1729816731966,0.07625283,68056.0,68055.0,0.073495]
[1729816732169,0.07625283,68055.0,68051.0,0.435058]
[1729816732370,0.07625283,68055.0,68053.0,0.05869879]
[1729816732677,0.07625283,68055.0,68052.0,0.05869879]
[1729816732978,0.0247628,68055.0,68054.0,0.04606796]
[1729816733278,0.15250566,68056.0,68054.0,0.04606796]
[1729816733480,0.15250566,68056.0,68054.0,0.00220344]
[1729816733668,0.22599966,68056.0,68054.0,0.00220344]
[1729816734067,0.15250566,68056.0,68054.0,0.00220344]
[1729816737972,0.3608,68055.0,68054.0,0.00220344]
[1729816738282,0.434295,68055.0,68054.0,0.00220344]
[1729816738483,0.470695,68055.0,68054.0,0.00220344]
[1729816740375,0.0735,68051.0,68048.0,0.04386452]
[1729816740682,0.07625283,68049.0,68048.0,0.11736652]
[1729816741277,0.073504,68047.0,68046.0,0.04386452]
[1729816741578,0.07625283,68047.0,68046.0,0.11736952]
[1729816741778,0.07625283,68047.0,68046.0,0.073505]
[1729816742579,0.15250566,68047.0,68046.0,0.073505]
[1729816743177,0.39868,68055.0,68046.0,0.19362235]
[1729816743376,0.07625283,68053.0,68050.0,0.0735]
[1729816743583,0.07625283,68052.0,68050.0,0.0735]
[1729816744379,0.07625283,68052.0,68049.0,0.04386452]
[1729816744587,0.07625283,68048.0,68041.0,0.05869879]
[1729816744775,0.073506,68045.0,68044.0,0.04384863]
[1729816744975,0.14975983,68044.0,68043.0,0.04384863]
[1729816745175,0.14976083,68043.0,68042.0,0.04384863]
[1729816745377,0.07625283,68042.0,68041.0,0.04384863]
[1729816745588,0.073508,68043.0,68041.0,0.04384863]
[1729816745883,0.07625283,68042.0,68041.0,0.04384863]
[1729816746086,0.15250566,68042.0,68041.0,0.11735863]
[1729816746386,0.15250566,68042.0,68041.0,0.07351]